[Event "Late-Titled-Tuesday-Blitz-January-30-2024"]
[Site "Chess.com"]
[Date "2024.01.30"]
[Round "7"]
[White "finec2"]
[Black "SmirnovTimofey2000"]
[Result "0-1"]
[WhiteElo "2211"]
[BlackElo "1952"]
[TimeControl "180+1"]
[EndTime "15:14:47 PST"]
[Termination "SmirnovTimofey2000 won by resignation"]

1. d4 {[%clk 0:02:59.6]} 1... d5 {[%clk 0:02:59.7]} 2. Bf4 {[%clk 0:02:59.1]}
2... Bf5 {[%clk 0:02:59.1]} 3. c4 {[%clk 0:02:58.5]} 3... e6 {[%clk 0:02:56.8]}
4. Qb3 {[%clk 0:02:52.1]} 4... Qc8 {[%clk 0:02:49.5]} 5. e3 {[%clk 0:02:50.9]}
5... c6 {[%clk 0:02:46.3]} 6. Nc3 {[%clk 0:02:49]} 6... a5 {[%clk 0:02:37.9]} 7.
Nf3 {[%clk 0:02:46.7]} 7... Bb4 {[%clk 0:02:32]} 8. a3 {[%clk 0:02:42.3]} 8...
Bxc3+ {[%clk 0:02:31.2]} 9. Qxc3 {[%clk 0:02:42.2]} 9... Ne7 {[%clk 0:02:28]}
10. Be2 {[%clk 0:02:38.5]} 10... O-O {[%clk 0:02:27.7]} 11. O-O {[%clk
0:02:38.5]} 11... Nd7 {[%clk 0:02:27.5]} 12. Nh4 {[%clk 0:02:35.9]} 12... Bg6
{[%clk 0:02:26.5]} 13. Nxg6 {[%clk 0:02:34.3]} 13... hxg6 {[%clk 0:02:19.2]} 14.
Bg3 {[%clk 0:02:34]} 14... Nf6 {[%clk 0:02:18.8]} 15. f3 {[%clk 0:02:31.1]}
15... Nf5 {[%clk 0:02:14]} 16. Bf2 {[%clk 0:02:21.5]} 16... a4 {[%clk
0:01:59.8]} 17. Bd3 {[%clk 0:02:16.6]} 17... Qc7 {[%clk 0:01:49.9]} 18. e4
{[%clk 0:02:02.6]} 18... Ne7 {[%clk 0:01:37]} 19. Bg3 {[%clk 0:01:58.1]} 19...
Qd7 {[%clk 0:01:31.2]} 20. Rad1 {[%clk 0:01:54.7]} 20... dxe4 {[%clk 0:01:26.5]}
21. fxe4 {[%clk 0:01:53.6]} 21... Nh5 {[%clk 0:01:22.1]} 22. Bf2 {[%clk
0:01:44.7]} 22... Rfd8 {[%clk 0:01:19.1]} 23. Bb1 {[%clk 0:01:43.8]} 23... Nf4
{[%clk 0:01:10.3]} 24. Be3 {[%clk 0:01:39.1]} 24... Ne2+ {[%clk 0:01:08.2]} 0-1

[Event "Late-Titled-Tuesday-Blitz-January-30-2024"]
[Site "Chess.com"]
[Date "2024.01.30"]
[Round "7"]
[White "ahkashefi2800"]
[Black "english_player_89"]
[Result "1-0"]
[WhiteElo "2570"]
[BlackElo "2427"]
[TimeControl "180+1"]
[EndTime "15:14:57 PST"]
[Termination "ahkashefi2800 won by resignation"]

1. Nf3 {[%clk 0:02:50.5]} 1... Nf6 {[%clk 0:02:59.3]} 2. g3 {[%clk 0:02:49.9]}
2... d5 {[%clk 0:02:59.7]} 3. Bg2 {[%clk 0:02:50.1]} 3... Bf5 {[%clk 0:02:59.8]}
4. c4 {[%clk 0:02:50.5]} 4... c6 {[%clk 0:02:59.7]} 5. cxd5 {[%clk 0:02:50.9]}
5... cxd5 {[%clk 0:03:00.2]} 6. O-O {[%clk 0:02:51.8]} 6... e6 {[%clk
0:03:00.4]} 7. Nc3 {[%clk 0:02:52.1]} 7... Nc6 {[%clk 0:03:00.4]} 8. d3 {[%clk
0:02:52.6]} 8... h6 {[%clk 0:03:00.2]} 9. Bf4 {[%clk 0:02:52.2]} 9... Be7 {[%clk
0:03:00]} 10. Rc1 {[%clk 0:02:50.3]} 10... O-O {[%clk 0:02:58.6]} 11. Nb5 {[%clk
0:02:50.4]} 11... a6 {[%clk 0:02:54.8]} 12. Nbd4 {[%clk 0:02:49.9]} 12... Nxd4
{[%clk 0:02:54.6]} 13. Nxd4 {[%clk 0:02:50.8]} 13... Bg6 {[%clk 0:02:52]} 14.
Qb3 {[%clk 0:02:49.7]} 14... Ra7 {[%clk 0:02:42.3]} 15. Bc7 {[%clk 0:02:43.9]}
15... Qe8 {[%clk 0:02:26.6]} 16. Qb6 {[%clk 0:02:39.7]} 16... Qa8 {[%clk
0:02:22.7]} 17. Nxe6 {[%clk 0:02:25.6]} 17... fxe6 {[%clk 0:02:19.5]} 18. Qxe6+
{[%clk 0:02:25]} 18... Rf7 {[%clk 0:02:17.5]} 19. Bb6 {[%clk 0:02:24.9]} 19...
Kh7 {[%clk 0:00:21.1]} 20. Rc8 {[%clk 0:02:23.3]} 20... Bh5 {[%clk 0:00:18]} 21.
Bf3 {[%clk 0:02:15.2]} 21... Bxf3 {[%clk 0:00:16.5]} 22. exf3 {[%clk 0:02:15]}
1-0

[Event "Late-Titled-Tuesday-Blitz-January-30-2024"]
[Site "Chess.com"]
[Date "2024.01.30"]
[Round "7"]
[White "leotobares"]
[Black "annasargsyan_m"]
[Result "0-1"]
[WhiteElo "2398"]
[BlackElo "2533"]
[TimeControl "180+1"]
[EndTime "15:15:24 PST"]
[Termination "annasargsyan_m won by resignation"]

1. d4 {[%clk 0:03:00.9]} 1... Nf6 {[%clk 0:02:14.2]} 2. Nf3 {[%clk 0:02:59.7]}
2... g6 {[%clk 0:02:14.1]} 3. c4 {[%clk 0:02:59]} 3... Bg7 {[%clk 0:02:14.1]} 4.
Nc3 {[%clk 0:02:58.5]} 4... d5 {[%clk 0:02:14.8]} 5. cxd5 {[%clk 0:02:58.3]}
5... Nxd5 {[%clk 0:02:15.7]} 6. e4 {[%clk 0:02:58]} 6... Nxc3 {[%clk 0:02:15.5]}
7. bxc3 {[%clk 0:02:58.9]} 7... c5 {[%clk 0:02:16.2]} 8. Bb5+ {[%clk 0:02:58.3]}
8... Bd7 {[%clk 0:02:15.7]} 9. Rb1 {[%clk 0:02:56.8]} 9... O-O {[%clk
0:02:15.6]} 10. O-O {[%clk 0:02:55.7]} 10... cxd4 {[%clk 0:02:14.1]} 11. Bxd7
{[%clk 0:02:53.5]} 11... Qxd7 {[%clk 0:02:13.7]} 12. cxd4 {[%clk 0:02:52.9]}
12... e6 {[%clk 0:02:09.6]} 13. Be3 {[%clk 0:02:48.5]} 13... Nc6 {[%clk
0:02:05.4]} 14. Qd2 {[%clk 0:02:47.5]} 14... Rac8 {[%clk 0:02:03.9]} 15. Rfd1
{[%clk 0:02:45.2]} 15... b6 {[%clk 0:02:03.9]} 16. Bh6 {[%clk 0:02:44.5]} 16...
Na5 {[%clk 0:02:03.3]} 17. Bxg7 {[%clk 0:02:43.3]} 17... Kxg7 {[%clk 0:02:04.2]}
18. d5 {[%clk 0:02:35.7]} 18... exd5 {[%clk 0:02:04]} 19. exd5 {[%clk
0:02:33.4]} 19... Nc4 {[%clk 0:02:04.1]} 20. Qd4+ {[%clk 0:02:31.4]} 20... Kg8
{[%clk 0:02:04.7]} 21. Rbc1 {[%clk 0:02:29.4]} 21... b5 {[%clk 0:02:02.9]} 22.
Qh4 {[%clk 0:02:24.8]} 22... Nd6 {[%clk 0:01:52.4]} 23. Rxc8 {[%clk 0:02:15.5]}
23... Rxc8 {[%clk 0:01:53.3]} 24. Ne5 {[%clk 0:02:11.1]} 24... Qf5 {[%clk
0:01:50.4]} 25. Nc6 {[%clk 0:02:08.6]} 25... Kg7 {[%clk 0:01:38.4]} 26. Ne7
{[%clk 0:01:57.8]} 26... Qd3 {[%clk 0:01:38.1]} 27. Qg4 {[%clk 0:01:49.6]} 27...
Rc4 {[%clk 0:01:35.2]} 28. Rxd3 {[%clk 0:01:33.1]} 28... Rxg4 {[%clk 0:01:34.2]}
29. Rc3 {[%clk 0:01:31.5]} 29... Re4 {[%clk 0:01:32.5]} 30. Re3 {[%clk
0:01:28.2]} 30... Rd4 {[%clk 0:01:26.1]} 31. g3 {[%clk 0:01:23.8]} 31... b4
{[%clk 0:01:26.3]} 32. a3 {[%clk 0:01:18.9]} 32... Nc4 {[%clk 0:01:25.7]} 33.
Rb3 {[%clk 0:01:12.7]} 33... bxa3 {[%clk 0:01:22.2]} 34. Kf1 {[%clk 0:01:04.6]}
34... Nd2+ {[%clk 0:01:21.8]} 0-1

[Event "Late-Titled-Tuesday-Blitz-January-30-2024"]
[Site "Chess.com"]
[Date "2024.01.30"]
[Round "7"]
[White "toninhojit"]
[Black "azikom"]
[Result "1/2-1/2"]
[WhiteElo "2524"]
[BlackElo "2715"]
[TimeControl "180+1"]
[EndTime "15:15:26 PST"]
[Termination "Game drawn by repetition"]

1. d4 {[%clk 0:03:00.9]} 1... d5 {[%clk 0:02:59.8]} 2. c4 {[%clk 0:03:01.1]}
2... e6 {[%clk 0:03:00]} 3. Nf3 {[%clk 0:03:01.5]} 3... c6 {[%clk 0:03:00.5]} 4.
e3 {[%clk 0:03:01.1]} 4... f5 {[%clk 0:02:59.3]} 5. Bd3 {[%clk 0:02:58]} 5...
Nf6 {[%clk 0:02:59.6]} 6. O-O {[%clk 0:02:58.7]} 6... Bd6 {[%clk 0:02:59.9]} 7.
b3 {[%clk 0:02:59.3]} 7... Qe7 {[%clk 0:02:59]} 8. a4 {[%clk 0:02:59.7]} 8... a5
{[%clk 0:02:58]} 9. Ba3 {[%clk 0:03:00]} 9... Bxa3 {[%clk 0:02:57.8]} 10. Nxa3
{[%clk 0:03:00.9]} 10... O-O {[%clk 0:02:58.2]} 11. Nc2 {[%clk 0:03:01.3]} 11...
b6 {[%clk 0:02:57.5]} 12. Ne5 {[%clk 0:03:00.2]} 12... Bb7 {[%clk 0:02:57.5]}
13. Qd2 {[%clk 0:02:55.7]} 13... Nbd7 {[%clk 0:02:56.3]} 14. f4 {[%clk
0:02:54.7]} 14... Nxe5 {[%clk 0:02:54.8]} 15. fxe5 {[%clk 0:02:54.5]} 15... Nd7
{[%clk 0:02:55.3]} 16. cxd5 {[%clk 0:02:52.2]} 16... cxd5 {[%clk 0:02:53.9]} 17.
Na3 {[%clk 0:02:45.6]} 17... Rfc8 {[%clk 0:02:49.7]} 18. Nb5 {[%clk 0:02:43.9]}
18... Nf8 {[%clk 0:02:20.3]} 19. Rac1 {[%clk 0:02:42.4]} 19... Ba6 {[%clk
0:02:16.9]} 20. Nd6 {[%clk 0:02:41.1]} 20... Rxc1 {[%clk 0:02:15.6]} 21. Rxc1
{[%clk 0:02:41]} 21... Bxd3 {[%clk 0:02:16.3]} 22. Qxd3 {[%clk 0:02:41.9]} 22...
Ng6 {[%clk 0:02:10]} 23. Qb5 {[%clk 0:02:22.4]} 23... Rb8 {[%clk 0:02:08.9]} 24.
Qa6 {[%clk 0:02:12.8]} 24... h6 {[%clk 0:01:57]} 25. Rc8+ {[%clk 0:02:06]} 25...
Rxc8 {[%clk 0:01:56.6]} 26. Qxc8+ {[%clk 0:02:06.9]} 26... Kh7 {[%clk
0:01:56.2]} 27. g3 {[%clk 0:01:45.1]} 27... Qg5 {[%clk 0:01:31.7]} 28. Kf2
{[%clk 0:01:39.8]} 28... Qh5 {[%clk 0:01:31.5]} 29. h4 {[%clk 0:01:31.9]} 29...
Qd1 {[%clk 0:01:30.1]} 30. Qxe6 {[%clk 0:01:04.1]} 30... Qd2+ {[%clk 0:01:28.8]}
31. Kf1 {[%clk 0:00:53]} 31... Qd1+ {[%clk 0:01:28.2]} 32. Kf2 {[%clk
0:00:52.8]} 32... Qd2+ {[%clk 0:01:28.4]} 33. Kf1 {[%clk 0:00:53.4]} 33... Qd1+
{[%clk 0:01:29]} 34. Kf2 {[%clk 0:00:53.9]} 1/2-1/2

[Event "Late-Titled-Tuesday-Blitz-January-30-2024"]
[Site "Chess.com"]
[Date "2024.01.30"]
[Round "7"]
[White "Anar_Aliakbarov"]
[Black "DonJuanEGenaro"]
[Result "1-0"]
[WhiteElo "2647"]
[BlackElo "2040"]
[TimeControl "180+1"]
[EndTime "15:15:29 PST"]
[Termination "Anar_Aliakbarov won by resignation"]

1. d4 {[%clk 0:03:00.9]} 1... d5 {[%clk 0:02:56.9]} 2. c4 {[%clk 0:02:57.5]}
2... e6 {[%clk 0:02:56.7]} 3. cxd5 {[%clk 0:02:55.3]} 3... exd5 {[%clk
0:02:56.1]} 4. Nc3 {[%clk 0:02:50.6]} 4... c6 {[%clk 0:02:55.9]} 5. Qc2 {[%clk
0:02:39.4]} 5... Bd6 {[%clk 0:02:55]} 6. Nf3 {[%clk 0:02:38.9]} 6... Nf6 {[%clk
0:02:52.7]} 7. Bg5 {[%clk 0:02:38.6]} 7... h6 {[%clk 0:02:51.7]} 8. Bh4 {[%clk
0:02:38.6]} 8... Bg4 {[%clk 0:02:46.4]} 9. Ne5 {[%clk 0:02:34.8]} 9... Be6
{[%clk 0:02:33.8]} 10. e3 {[%clk 0:02:30.8]} 10... Nbd7 {[%clk 0:02:32.7]} 11.
Nxd7 {[%clk 0:02:28]} 11... Qxd7 {[%clk 0:02:32.4]} 12. Bxf6 {[%clk 0:02:25.9]}
12... gxf6 {[%clk 0:02:31.8]} 13. Bd3 {[%clk 0:02:26.3]} 13... f5 {[%clk
0:02:31.6]} 14. g3 {[%clk 0:02:24.5]} 14... h5 {[%clk 0:02:30.7]} 15. h4 {[%clk
0:02:24.1]} 15... O-O-O {[%clk 0:02:10.9]} 16. O-O-O {[%clk 0:02:22.2]} 16... c5
{[%clk 0:01:51.5]} 17. dxc5 {[%clk 0:02:16.7]} 17... Be5 {[%clk 0:01:08.8]} 18.
Nb5 {[%clk 0:02:12]} 18... a6 {[%clk 0:01:01.6]} 19. c6 {[%clk 0:02:01.2]} 19...
bxc6 {[%clk 0:00:53.5]} 20. Nd4 {[%clk 0:02:01.3]} 20... Kb7 {[%clk 0:00:40.2]}
21. Nb3 {[%clk 0:02:01.4]} 21... Bd6 {[%clk 0:00:34.9]} 22. Kb1 {[%clk
0:01:44.6]} 22... Qe7 {[%clk 0:00:32.8]} 23. Na5+ {[%clk 0:01:43.7]} 23... Kb6
{[%clk 0:00:24]} 24. Qxc6+ {[%clk 0:01:43.7]} 24... Ka7 {[%clk 0:00:18.4]} 25.
Qxa6+ {[%clk 0:01:44.6]} 25... Kb8 {[%clk 0:00:17.7]} 26. Nc6+ {[%clk
0:01:45.3]} 1-0

[Event "Late-Titled-Tuesday-Blitz-January-30-2024"]
[Site "Chess.com"]
[Date "2024.01.30"]
[Round "7"]
[White "Yaacovn"]
[Black "jsdbv18"]
[Result "1-0"]
[WhiteElo "2807"]
[BlackElo "2609"]
[TimeControl "180+1"]
[EndTime "15:15:38 PST"]
[Termination "Yaacovn won by resignation"]

1. d4 {[%clk 0:02:58.9]} 1... Nf6 {[%clk 0:02:51.4]} 2. Nf3 {[%clk 0:02:59.8]}
2... d5 {[%clk 0:02:51]} 3. c4 {[%clk 0:02:59]} 3... e6 {[%clk 0:02:51.1]} 4.
Bg5 {[%clk 0:02:58.7]} 4... Nbd7 {[%clk 0:02:48.3]} 5. Nc3 {[%clk 0:02:58.5]}
5... h6 {[%clk 0:02:45.7]} 6. Bh4 {[%clk 0:02:58]} 6... dxc4 {[%clk 0:02:34.1]}
7. e3 {[%clk 0:02:57.7]} 7... c5 {[%clk 0:02:24.3]} 8. Bxc4 {[%clk 0:02:55.2]}
8... cxd4 {[%clk 0:02:23.6]} 9. exd4 {[%clk 0:02:55.2]} 9... Be7 {[%clk
0:02:23]} 10. O-O {[%clk 0:02:55]} 10... O-O {[%clk 0:02:22.7]} 11. Re1 {[%clk
0:02:55.2]} 11... Nb6 {[%clk 0:02:21.8]} 12. Bb3 {[%clk 0:02:54.9]} 12... Nfd5
{[%clk 0:02:19.9]} 13. Nxd5 {[%clk 0:02:53.1]} 13... Nxd5 {[%clk 0:02:17.6]} 14.
Bg3 {[%clk 0:02:44.1]} 14... b6 {[%clk 0:02:00.3]} 15. Ne5 {[%clk 0:02:42.6]}
15... Bb7 {[%clk 0:02:00.5]} 16. Rc1 {[%clk 0:02:41.2]} 16... Rc8 {[%clk
0:01:59.8]} 17. Qh5 {[%clk 0:02:40.5]} 17... Nf6 {[%clk 0:01:57.3]} 18. Qe2
{[%clk 0:02:33.7]} 18... Bd5 {[%clk 0:01:56.2]} 19. Bc2 {[%clk 0:02:24.7]} 19...
Bb7 {[%clk 0:01:26.5]} 20. Red1 {[%clk 0:01:50.6]} 20... Qd5 {[%clk 0:01:22.5]}
21. f3 {[%clk 0:01:44.2]} 21... Rfd8 {[%clk 0:01:01.3]} 22. Bb3 {[%clk
0:01:14.8]} 22... Qa5 {[%clk 0:00:41.2]} 23. Rxc8 {[%clk 0:01:12.7]} 23... Bxc8
{[%clk 0:00:37.2]} 24. Nc6 {[%clk 0:01:12.3]} 1-0

[Event "Late-Titled-Tuesday-Blitz-January-30-2024"]
[Site "Chess.com"]
[Date "2024.01.30"]
[Round "7"]
[White "Chempiblinka"]
[Black "szachmistrz2500"]
[Result "1/2-1/2"]
[WhiteElo "2324"]
[BlackElo "2504"]
[TimeControl "180+1"]
[EndTime "15:15:44 PST"]
[Termination "Game drawn by agreement"]

1. Nf3 {[%clk 0:03:00.9]} 1... c5 {[%clk 0:02:57.7]} 2. g3 {[%clk 0:03:00.5]}
2... g6 {[%clk 0:02:57]} 3. Bg2 {[%clk 0:02:59.9]} 3... Bg7 {[%clk 0:02:57.5]}
4. O-O {[%clk 0:02:59.7]} 4... Nc6 {[%clk 0:02:58.1]} 5. c4 {[%clk 0:03:00.3]}
5... e6 {[%clk 0:02:55.8]} 6. Nc3 {[%clk 0:02:56.1]} 6... Nge7 {[%clk
0:02:55.4]} 7. e3 {[%clk 0:02:54.7]} 7... d5 {[%clk 0:02:53.3]} 8. cxd5 {[%clk
0:02:54.1]} 8... exd5 {[%clk 0:02:53.4]} 9. d4 {[%clk 0:02:54]} 9... cxd4 {[%clk
0:02:53.2]} 10. Nxd4 {[%clk 0:02:49.4]} 10... Nxd4 {[%clk 0:02:51]} 11. exd4
{[%clk 0:02:49.9]} 11... O-O {[%clk 0:02:50]} 12. Bg5 {[%clk 0:02:49.7]} 12...
Be6 {[%clk 0:02:46.5]} 13. Nxd5 {[%clk 0:02:24.9]} 13... Bxd5 {[%clk 0:02:38]}
14. Bxe7 {[%clk 0:02:24.6]} 14... Qxe7 {[%clk 0:02:36.6]} 15. Bxd5 {[%clk
0:02:25.1]} 15... Rfd8 {[%clk 0:02:34.6]} 16. Qf3 {[%clk 0:02:19.7]} 16... Bxd4
{[%clk 0:02:28.2]} 17. Rae1 {[%clk 0:02:11.2]} 17... Qf6 {[%clk 0:02:27]} 18.
Bxb7 {[%clk 0:02:00.9]} 18... Rab8 {[%clk 0:02:13.7]} 19. b3 {[%clk 0:01:50.5]}
19... Qxf3 {[%clk 0:02:03.1]} 20. Bxf3 {[%clk 0:01:49.6]} 20... Bf6 {[%clk
0:02:01.2]} 21. Rd1 {[%clk 0:01:46.5]} 21... a5 {[%clk 0:01:58.1]} 22. Rxd8+
{[%clk 0:01:44.8]} 22... Rxd8 {[%clk 0:01:58.2]} 23. Rd1 {[%clk 0:01:45.4]}
23... Rc8 {[%clk 0:01:57]} 24. Rd7 {[%clk 0:01:42.1]} 24... Rd8 {[%clk
0:01:51.1]} 25. Rxd8+ {[%clk 0:01:33.8]} 25... Bxd8 {[%clk 0:01:50.9]} 26. Kf1
{[%clk 0:01:34.4]} 26... Kf8 {[%clk 0:01:50.8]} 27. Ke2 {[%clk 0:01:35.3]} 27...
Ke7 {[%clk 0:01:51.1]} 28. Kd3 {[%clk 0:01:34.7]} 28... Kd6 {[%clk 0:01:51.1]}
29. Kc4 {[%clk 0:01:29.6]} 29... h5 {[%clk 0:01:36.4]} 30. Bd5 {[%clk
0:01:27.8]} 30... h4 {[%clk 0:01:26.6]} 31. Bxf7 {[%clk 0:01:25.6]} 31... Bb6
{[%clk 0:01:23.9]} 32. gxh4 {[%clk 0:01:07.2]} 32... Bxf2 {[%clk 0:01:22.5]} 33.
Bxg6 {[%clk 0:01:07.4]} 33... Bxh4 {[%clk 0:01:21.3]} 34. Kb5 {[%clk 0:01:05.1]}
34... Be1 {[%clk 0:01:21.3]} 35. a3 {[%clk 0:01:02.6]} 35... Ke5 {[%clk
0:01:21.3]} 36. b4 {[%clk 0:01:00.8]} 36... axb4 {[%clk 0:01:21.4]} 37. axb4
{[%clk 0:01:01.5]} 37... Bxb4 {[%clk 0:01:18.4]} 38. Kxb4 {[%clk 0:01:00.3]}
38... Kf6 {[%clk 0:01:18.8]} 1/2-1/2

[Event "Late-Titled-Tuesday-Blitz-January-30-2024"]
[Site "Chess.com"]
[Date "2024.01.30"]
[Round "7"]
[White "GoltsevDmitry2000"]
[Black "masnyszachistaaa"]
[Result "1-0"]
[WhiteElo "2816"]
[BlackElo "2560"]
[TimeControl "180+1"]
[EndTime "15:15:53 PST"]
[Termination "GoltsevDmitry2000 won by resignation"]

1. e4 {[%clk 0:03:00.9]} 1... c5 {[%clk 0:02:58.8]} 2. Nf3 {[%clk 0:03:00.7]}
2... Nc6 {[%clk 0:02:20.7]} 3. d4 {[%clk 0:02:59.9]} 3... cxd4 {[%clk
0:02:20.7]} 4. Nxd4 {[%clk 0:03:00.5]} 4... g6 {[%clk 0:02:20.9]} 5. Nc3 {[%clk
0:02:58.8]} 5... Bg7 {[%clk 0:02:21.1]} 6. Nb3 {[%clk 0:02:58.4]} 6... Nf6
{[%clk 0:02:15]} 7. Be2 {[%clk 0:02:58]} 7... O-O {[%clk 0:02:14.3]} 8. O-O
{[%clk 0:02:58.6]} 8... d6 {[%clk 0:02:14]} 9. Be3 {[%clk 0:02:59]} 9... Bd7
{[%clk 0:02:09.2]} 10. f4 {[%clk 0:02:59.3]} 10... Rc8 {[%clk 0:02:05]} 11. Bf3
{[%clk 0:02:59.5]} 11... Be6 {[%clk 0:01:18.8]} 12. Nd5 {[%clk 0:02:40.3]} 12...
a6 {[%clk 0:00:41.4]} 13. c4 {[%clk 0:02:34.6]} 13... Bxd5 {[%clk 0:00:36.8]}
14. cxd5 {[%clk 0:02:33.4]} 14... Na5 {[%clk 0:00:37]} 15. Nxa5 {[%clk
0:02:31.5]} 15... Qxa5 {[%clk 0:00:37.9]} 16. Qe2 {[%clk 0:02:24.9]} 16... Qb4
{[%clk 0:00:23.8]} 17. Bf2 {[%clk 0:02:19.9]} 17... Nd7 {[%clk 0:00:23.4]} 18.
Rab1 {[%clk 0:02:09.6]} 18... Qc4 {[%clk 0:00:23.4]} 19. Qe3 {[%clk 0:02:00.2]}
19... Qxa2 {[%clk 0:00:21.2]} 20. Bg4 {[%clk 0:01:58.6]} 20... Rfd8 {[%clk
0:00:18.1]} 21. h4 {[%clk 0:01:55.2]} 21... h5 {[%clk 0:00:17.7]} 22. Bh3 {[%clk
0:01:55.5]} 22... Rc2 {[%clk 0:00:17.8]} 23. Rbc1 {[%clk 0:01:49.8]} 23... Qxb2
{[%clk 0:00:17.5]} 24. Rb1 {[%clk 0:01:48.1]} 24... Qc3 {[%clk 0:00:15.6]} 25.
Rxb7 {[%clk 0:01:46.9]} 25... Nc5 {[%clk 0:00:12]} 26. Rxe7 {[%clk 0:01:43.5]}
26... Bf6 {[%clk 0:00:11.6]} 27. Rc7 {[%clk 0:01:36.5]} 27... Qxe3 {[%clk
0:00:11.6]} 28. Bxe3 {[%clk 0:01:37]} 28... Nxe4 {[%clk 0:00:12.2]} 29. Rxc2
{[%clk 0:01:36.6]} 29... Bxh4 {[%clk 0:00:12.4]} 30. Rc8 {[%clk 0:01:34]} 30...
Rxc8 {[%clk 0:00:12.1]} 31. Bxc8 {[%clk 0:01:34.9]} 1-0

[Event "Late-Titled-Tuesday-Blitz-January-30-2024"]
[Site "Chess.com"]
[Date "2024.01.30"]
[Round "7"]
[White "JSPrepz"]
[Black "Sanyura"]
[Result "0-1"]
[WhiteElo "2844"]
[BlackElo "2672"]
[TimeControl "180+1"]
[EndTime "15:15:57 PST"]
[Termination "Sanyura won by resignation"]

1. e4 {[%clk 0:03:00.9]} 1... c5 {[%clk 0:02:42.4]} 2. Nf3 {[%clk 0:03:00.5]}
2... e6 {[%clk 0:02:42.8]} 3. Nc3 {[%clk 0:02:59.5]} 3... Nc6 {[%clk 0:02:41.5]}
4. d4 {[%clk 0:02:59.3]} 4... cxd4 {[%clk 0:02:41.9]} 5. Nxd4 {[%clk 0:03:00.2]}
5... Nf6 {[%clk 0:02:42.3]} 6. Nxc6 {[%clk 0:02:59.5]} 6... bxc6 {[%clk
0:02:43.2]} 7. e5 {[%clk 0:02:59.4]} 7... Nd5 {[%clk 0:02:43.2]} 8. Ne4 {[%clk
0:03:00.1]} 8... Qc7 {[%clk 0:02:43.6]} 9. f4 {[%clk 0:03:00.4]} 9... Qb6 {[%clk
0:02:44.1]} 10. c4 {[%clk 0:03:00]} 10... Bb4+ {[%clk 0:02:44.1]} 11. Ke2 {[%clk
0:03:00.3]} 11... Ba6 {[%clk 0:02:44.6]} 12. Kf3 {[%clk 0:02:57.9]} 12... f5
{[%clk 0:02:45.2]} 13. Nf2 {[%clk 0:02:58.3]} 13... Ne7 {[%clk 0:02:45.4]} 14.
Be3 {[%clk 0:02:56.3]} 14... Bc5 {[%clk 0:02:45.7]} 15. Bxc5 {[%clk 0:02:56.4]}
15... Qxc5 {[%clk 0:02:46.6]} 16. Qd6 {[%clk 0:02:56.6]} 16... Qb6 {[%clk
0:02:45.9]} 17. b4 {[%clk 0:02:56.7]} 17... c5 {[%clk 0:02:38]} 18. Qxc5 {[%clk
0:02:53.3]} 18... Qb7+ {[%clk 0:02:37]} 19. Kg3 {[%clk 0:02:53.2]} 19... Rc8
{[%clk 0:02:36.1]} 20. Qd4 {[%clk 0:02:38.1]} 20... Qxb4 {[%clk 0:02:35.5]} 21.
Be2 {[%clk 0:02:34.9]} 21... g5 {[%clk 0:02:35.1]} 22. Rhb1 {[%clk 0:02:24.9]}
22... gxf4+ {[%clk 0:02:34.6]} 23. Kh3 {[%clk 0:02:25.3]} 23... Nc6 {[%clk
0:02:20.6]} 24. Qxf4 {[%clk 0:01:50.5]} 24... Qc3+ {[%clk 0:02:15.4]} 25. Nd3
{[%clk 0:01:46.6]} 25... Bxc4 {[%clk 0:01:34.2]} 26. Rc1 {[%clk 0:01:43.4]}
26... Qd4 {[%clk 0:01:33.8]} 27. Rxc4 {[%clk 0:01:21.3]} 27... Qxa1 {[%clk
0:01:32.6]} 28. Qg5 {[%clk 0:00:51.6]} 28... h5 {[%clk 0:01:31.6]} 29. Bxh5+
{[%clk 0:00:35]} 29... Rxh5+ {[%clk 0:01:31]} 30. Qxh5+ {[%clk 0:00:35.9]} 30...
Kd8 {[%clk 0:01:31.6]} 31. Qh4+ {[%clk 0:00:25]} 31... Kc7 {[%clk 0:01:30.9]}
32. Qd4 {[%clk 0:00:22.3]} 32... Rh8+ {[%clk 0:01:28.2]} 33. Kg3 {[%clk
0:00:22.5]} 33... Rg8+ {[%clk 0:01:28.5]} 34. Kh3 {[%clk 0:00:22.3]} 34... Qxd4
{[%clk 0:01:27.1]} 0-1

[Event "Late-Titled-Tuesday-Blitz-January-30-2024"]
[Site "Chess.com"]
[Date "2024.01.30"]
[Round "7"]
[White "wild3000"]
[Black "yujiarun18"]
[Result "0-1"]
[WhiteElo "2318"]
[BlackElo "2104"]
[TimeControl "180+1"]
[EndTime "15:16:02 PST"]
[Termination "yujiarun18 won by checkmate"]

1. g3 {[%clk 0:02:05.5]} 1... d5 {[%clk 0:02:57.3]} 2. e3 {[%clk 0:02:05.7]}
2... c6 {[%clk 0:02:55.4]} 3. c3 {[%clk 0:02:06.1]} 3... Nf6 {[%clk 0:02:52]} 4.
a3 {[%clk 0:02:06.2]} 4... h6 {[%clk 0:02:50.8]} 5. d4 {[%clk 0:02:05.9]} 5...
Bf5 {[%clk 0:02:50.8]} 6. b4 {[%clk 0:02:05.6]} 6... a6 {[%clk 0:02:50.5]} 7. f4
{[%clk 0:02:05.4]} 7... Nbd7 {[%clk 0:02:44.9]} 8. Nf3 {[%clk 0:02:05.3]} 8...
e6 {[%clk 0:02:45]} 9. Bg2 {[%clk 0:02:05.2]} 9... Be7 {[%clk 0:02:43.9]} 10.
O-O {[%clk 0:02:05]} 10... Ne4 {[%clk 0:02:43.9]} 11. Bb2 {[%clk 0:02:03.9]}
11... h5 {[%clk 0:02:43.5]} 12. h4 {[%clk 0:02:02.5]} 12... Qc7 {[%clk
0:02:42.3]} 13. Kh2 {[%clk 0:02:01.8]} 13... f6 {[%clk 0:02:40.6]} 14. Nbd2
{[%clk 0:02:01.3]} 14... g5 {[%clk 0:02:34.4]} 15. Nxe4 {[%clk 0:02:00.2]} 15...
Bxe4 {[%clk 0:02:33.8]} 16. Rc1 {[%clk 0:01:47.8]} 16... gxh4 {[%clk 0:02:26]}
17. Nxh4 {[%clk 0:01:47.1]} 17... O-O-O {[%clk 0:02:22.2]} 18. Bxe4 {[%clk
0:01:45.9]} 18... dxe4 {[%clk 0:02:21.3]} 19. c4 {[%clk 0:01:40.5]} 19... f5
{[%clk 0:02:18.7]} 20. Ng6 {[%clk 0:01:39]} 20... Rh7 {[%clk 0:02:19]} 21. Nxe7+
{[%clk 0:01:38.9]} 21... Rxe7 {[%clk 0:02:19]} 22. Qxh5 {[%clk 0:01:30.3]} 22...
Nf6 {[%clk 0:02:18.6]} 23. Qe2 {[%clk 0:01:26.5]} 23... Rg8 {[%clk 0:02:10.2]}
24. Kg2 {[%clk 0:01:20]} 24... Reg7 {[%clk 0:02:03.9]} 25. Kf2 {[%clk
0:01:10.4]} 25... Rxg3 {[%clk 0:02:02.8]} 26. Rg1 {[%clk 0:01:06.6]} 26... Rf3+
{[%clk 0:01:58.6]} 27. Qxf3 {[%clk 0:01:04]} 27... exf3 {[%clk 0:01:57.4]} 28.
d5 {[%clk 0:00:58.1]} 28... Ng4+ {[%clk 0:01:53.3]} 29. Kxf3 {[%clk 0:00:57.4]}
29... Qh7 {[%clk 0:01:50.8]} 30. Rh1 {[%clk 0:00:55.2]} 30... Nh2+ {[%clk
0:01:48.5]} 31. Ke2 {[%clk 0:00:54.2]} 31... Qh5+ {[%clk 0:01:48.8]} 32. Kd3
{[%clk 0:00:54.1]} 32... Rg2 {[%clk 0:01:46]} 33. Be5 {[%clk 0:00:47]} 33...
Qe2+ {[%clk 0:01:44.8]} 34. Kd4 {[%clk 0:00:46.9]} 34... b6 {[%clk 0:01:37.9]}
35. Bd6 {[%clk 0:00:17.4]} 35... Qb2+ {[%clk 0:01:35.1]} 36. Kd3 {[%clk
0:00:16.6]} 36... Qd2# {[%clk 0:01:34.1]} 0-1